Cogmind - Beta 16 @@@ ROGUE MODE // 2025.11.19 @ 16:27:21 Player: Miles Result: Self-destructed Performance ------------- Evolutions (2) 1000 Regions Visited (4) 800 Robots Destroyed (28) 140 Value Destroyed (633) 633 Prototype IDs (2) 40 Alien Tech Used (0) 0 Bonus (0) 0 TOTAL SCORE: 2613 Bonus ------- None Cogmind --------- Core Integrity 515/550 Matter 280/300 Energy 160/160 System Corruption 0% Temperature Warning (358) Movement Rolling (100) Location -8/Materials Parts ------- > --- POWER (2) -------- Light Nuclear Core > --- PROPULSION (4) --- Compact Wheel Compact Wheel > --- UTILITY (3) ------ ECM Suite Drone Bay (2/2) Drone Bay (1/2) > --- WEAPON (2) ------- Small Laser Particle Gun > --- INVENTORY (5) ---- Weight Redist. System Medium Armor Plating Drone Bay (2/2) Drone Bay (0/2) Improved Datajack Peak State ------------ > --- POWER ------------ Ion Engine > --- PROPULSION ------- Compact Wheel Compact Wheel Compact Wheel > --- UTILITY ---------- Drone Bay Drone Bay Drone Bay > --- WEAPON ----------- Particle Gun Improved Datajack > --- INVENTORY -------- Weight Redist. System Medium Armor Plating Drone Bay Small Laser [Rating: 25] Favorites ----------- Power Ion Engine Engine Ion Engine Power Core Light Nuclear Core Propulsion Wheel Leg Aluminum Leg Wheel Wheel Utility Improved Terrain Scanner Device Improved Terrain Scanner Storage Small Storage Unit Processor Improved Terrain Scan Processor Weapon Light Cannon Energy Gun Particle Gun Ballistic Gun Assault Rifle Ballistic Cannon Light Cannon Launcher Grenade Launcher Impact Weapon Hammer Slashing Weapon Katana Special Melee Weapon Improved Datajack Build | -11 -10 -9 -9 -8 ------- Run | Yrd Mat Mat Sto Mat Slots Evolved 4 | . . 2 . 2 Power 1 | . . . . 1 Propulsion 2 | . . 1 . 1 Utility 1 | . . 1 . . Weapon . | . . . . . Parts Attached 42 | 10 6 5 19 2 Power 5 | 1 1 . 2 1 Engine 4 | 1 1 . 2 . Core 1 | . . . . 1 Reactor . | . . . . . Propulsion 11 | 4 2 1 4 . Treads . | . . . . . Leg 2 | 2 . . . . Wheel 9 | 2 2 1 4 . Hover . | . . . . . Flight . | . . . . . Utility 11 | 3 . 1 6 1 Device 8 | 2 . . 5 1 Storage 2 | 1 . . 1 . Processor 1 | . . 1 . . Hackware . | . . . . . Protection . | . . . . . Artifact . | . . . . . Weapon 15 | 2 3 3 7 . Energy Gun 6 | . . 1 5 . Energy Cannon . | . . . . . Ballistic Gun 3 | 2 . . 1 . Ballistic Cannon 2 | . 2 . . . Launcher 1 | . . 1 . . Special Weapon . | . . . . . Impact Weapon 1 | . 1 . . . Slashing Weapon 1 | . . 1 . . Piercing Weapon . | . . . . . Special Melee Weapon 1 | . . . 1 . Unidentified Prototypes 2 | . . 1 1 . Parts Lost 13 | . . . 11 2 Power 3 | . . . 2 1 Propulsion 6 | . . . 5 1 Utility 1 | . . . 1 . Weapon 3 | . . . 3 . Highest Loss Streak 9 | . . . 9 2 To Critical Strikes . | . . . . . Average Backups 7 | 4 8 7 7 5 Power . | 1 2 1 . . Propulsion 3 | 2 4 3 3 . Utility 1 | . 1 1 1 4 Weapon . | . . 1 1 . Tool/Special . | . . . . . Unused Backups 7 | 2 2 . . 3 Power 1 | . 1 . . . Propulsion 1 | . 1 . . . Utility 5 | 2 . . . 3 Weapon . | . . . . . Tool/Special . | . . . . . Average Slot Usage (%) 91 | . 100 88 93 80 Engine 10 | . 14 11 9 8 Wheel 27 | . 28 22 31 25 Device 15 | . 14 11 16 26 Storage 8 | . 14 11 7 . Processor 5 | . . 10 7 . Energy Gun 4 | . . . 5 18 Ballistic Gun 2 | . 4 . 3 . Ballistic Cannon 7 | . 13 11 3 . Impact Weapon 4 | . 10 8 . . Slashing Weapon 2 | . . 1 4 . Peak Build Rating 25 | 10 10 16 25 23 Average Rating 14 | 6 9 13 17 19 On Entrance 11 | . 10 10 16 23 Avg Prop Armor Cover (%) . | . . . . . Naked Turns . | . . . . . Heaviest Build 28 | 12 16 17 27 28 Greatest Support 48 | 32 32 30 48 48 Greatest Overweight (x) 1 | 1 . . . . Average Overweight (x) . | . . . . . Largest Inventory Capacity 10 | 8 8 8 10 5 Average Capacity 7 | 6 8 8 8 5 Most Carried 10 | 8 8 8 10 5 Average Carried 7 | 5 7 7 7 5 Final Capacity 8 | 8 8 8 5 5 Final Carried 8 | 8 8 8 5 5 Class Distribution -------------------- 68% | Mutant 31% | Scavenger-Mutant Dominant Class ---------------- Mutant | -10/Materials Mutant | -9/Materials Scavenger-Mutant | -9/Storage Scavenger-Mutant | -8/Materials Resources | -11 -10 -9 -9 -8 ----------- Run | Yrd Mat Mat Sto Mat Matter Collected 798 | 342 . 156 300 . Remotely 179 | 179 . . . . Salvage Created 906 | 144 . 230 490 42 Parts 58 | 15 . 18 25 . Haulers Intercepted 1 | . . . 1 . Recyclers Shooed 1 | . . 1 . . Parts Field Recycled . | . . . . . Retrieved Matter . | . . . . . Parts Self-Destructed . | . . . . . Prevented . | . . . . . Parts Restored . | . . . . . Kills | -11 -10 -9 -9 -8 ------- Run | Yrd Mat Mat Sto Mat Combat Hostiles Destroyed 17 | . . 6 10 1 Guns 5 | . . . 4 1 Cannons 4 | . . 1 3 . AOE 7 | . . 5 2 . Classes Destroyed 10 | 2 . 5 3 . Worker 1 | . . 1 . . Builder 1 | . . 1 . . Tunneler 3 | 3 . . . . Hauler 1 | . . . 1 . Recycler 4 | 1 . 1 2 . Watcher 1 | . . 1 . . Swarmer 3 | . . . 3 . Grunt 11 | . . 5 5 1 Duelist 1 | . . 1 . . Sentry 2 | . . . 2 . Best Kill Streak 9 | 2 . 9 6 1 Combat Bots Only 6 | . . 6 3 1 Max Kills in Single Turn 2 | 1 . 2 2 1 Gunslinging . | . . . . . Exploded 2 | . . 2 1 . Melee . | . . . . . Uniques/NPCs Destroyed . | . . . . . Combat | -11 -10 -9 -9 -8 -------- Run | Yrd Mat Mat Sto Mat Hostile Shots Fired 171 | . . 23 112 36 Missed 40 | . . 7 25 8 Hits 131 | . . 16 87 28 Projectile 131 | . . 16 87 28 Critical Strikes 1 | . . . 1 . Damage Taken 1629 | . . 184 1107 338 Core 340 | . . 41 264 35 Absorbed by Shields . | . . . . . Core Remaining (%) 74 | 100 100 . 23 . Volleys Fired 63 | 11 . 15 29 8 Largest 2 | 2 . 1 2 2 Hottest 105 | 40 . 30 90 105 Shots Fired 91 | 22 . 15 38 16 Gun 69 | 22 . . 31 16 Cannon 15 | . . 8 7 . Launcher 7 | . . 7 . . Special . | . . . . . Kinetic 40 | 22 . 8 10 . Thermal 33 | . . . 17 16 Explosive 7 | . . 7 . . Electromagnetic 11 | . . . 11 . Robot Hit Streak 16 | 7 . 6 8 16 Robot Miss Streak 4 | 2 . 2 2 4 Penetration Max . | . . . . . Secondary Targets 1 | . . . 1 . Max Gunslinging Chain 1 | . . . 1 . Shots Hit Robots 71 | 15 . 11 34 11 Core Hits 40 | 6 . 16 15 3 Critical Kills . | . . . . . Critical Parts Destroyed . | . . . . . Critical Strikes 1 | . . . 1 . Burn 1 | . . . 1 . Melee Attacks 8 | . . 1 7 . Impact . | . . . . . Slashing 7 | . . 1 6 . Piercing . | . . . . . Sneak Attacks 3 | . . 1 2 . Combat Hostiles . | . . . . . Follow-up Attacks . | . . . . . Damage Inflicted 1773 | 169 . 672 789 143 Guns 712 | 169 . . 400 143 Cannons 166 | . . 77 89 . Explosions 648 | . . 538 110 . Melee 247 | . . 57 190 . Ramming . | . . . . . Kinetic 335 | 169 . 77 89 . Thermal 472 | . . . 329 143 Explosive 538 | . . 538 . . Electromagnetic 181 | . . . 181 . Impact . | . . . . . Slashing 247 | . . 57 190 . Piercing . | . . . . . Highest Corruption 2 | . . . 2 . Average Corruption 2 | . . . 2 . Corruption Purged . | . . . . . Corruption Blocked . | . . . . . Effects 9 | . . . 9 . Message Errors 3 | . . . 3 . Matter Fused 2 | . . . 2 . Heat Flow Errors 1 | . . . 1 . Data Loss (minor) 1 | . . . 1 . Misfires 1 | . . . 1 . Weapon Failures 1 | . . . 1 . Overload Shots . | . . . . . Overflow Damage 48 | . . . 48 . Projectiles . | . . . . . Explosions 32 | . . . 32 . Melee 16 | . . . 16 . Knockbacks 2 | . . 1 1 . Impact . | . . . . . Kinetic 2 | . . 1 1 . Secondary . | . . . . . Self-Inflicted Damage 90 | . . 13 77 . Shots 4 | . . 2 2 . Rammed . | . . . . . Targets Rammed . | . . . . . Kicked . | . . . . . Crushed . | . . . . . Highest Temperature 358 | . . 4 192 358 Average Temperature 105 | . . 4 77 202 Received Heat Transfer 531 | . . 96 327 108 Siege Activations . | . . . . . Martial Activations . | . . . . . Shielding Activations . | . . . . . Robots Disrupted . | . . . . . Combat Hostiles . | . . . . . Robots Corrupted . | . . . . . Combat Hostiles . | . . . . . Parts Fried 2 | . . . 2 . Impact Corruptions . | . . . . . Robots Melted 1 | . . . 1 . Combat Hostiles 1 | . . . 1 . Parts Melted 3 | . . . 2 1 Heat Transferred 1027 | . . . 692 335 Parts Sabotaged . | . . . . . Parts Stolen . | . . . . . Parts Stripped . | . . . . . Power Chain Reactions 2 | . . . 2 . Alert | -11 -10 -9 -9 -8 ------- Run | Yrd Mat Mat Sto Mat Maximum Alert Level 1 | . . 1 1 . Low Security (%) 98 | 100 100 97 97 100 Level 1 1 | . . 2 2 . Level 2 . | . . . . . Level 3 . | . . . . . Level 4 . | . . . . . Level 5 . | . . . . . High Security . | . . . . . Max Security . | . . . . . Peak Influence 216 | 5 . 216 215 57 Initial 91 | . . . 91 57 Average 53 | 1 . 41 128 24 Influence Increases 689 | 20 . 273 365 31 Destroy 0b10 Robot/C 340 | . . 120 200 20 Destroy 0b10 Robot/NC 55 | 20 . 20 15 . Destroy Leader 94 | . . 32 52 10 Successful Hack 7 | . . 7 . . Disable Machine 15 | . . . 15 . Destroy Structure 43 | . . 34 8 1 Partial Spotted 15 | . . 15 . . Lose Combat Pursuer 120 | . . 45 75 . Influence Decreases 658 | 20 . 57 445 136 Entered New Map 204 | . . . 125 79 Time Decay 294 | 20 . 57 170 47 Lost Part 110 | . . . 110 . Lost Ally 50 | . . . 40 10 Squads Dispatched 7 | . . 3 3 1 Investigation 4 | . . 2 2 . Extermination . | . . . . . Reinforcement 3 | . . 1 1 1 Assault . | . . . . . Garrison . | . . . . . Intercept . | . . . . . Searches Triggered . | . . . . . Construction Impeded . | . . . . . Haulers Reinforced . | . . . . . Active Scanning Responses . | . . . . . Cargo Convoy Interrupts . | . . . . . Stealth | -11 -10 -9 -9 -8 --------- Run | Yrd Mat Mat Sto Mat Distress Signals 3 | . . 1 1 1 Communications Jammed . | . . . . . Distress Signals . | . . . . . Times Spotted 39 | . 2 12 17 8 Peak Tracking Total 9 | . 2 6 9 5 Tactical Retreats 6 | . . 2 2 2 ECM-based Alert Blocks 4 | . . . . 4 Traps | -11 -10 -9 -9 -8 ------- Run | Yrd Mat Mat Sto Mat Traps Triggered 3 | . . . 3 . Indirectly . | . . . . . Trap Hack Attempts . | . . . . . Triggered . | . . . . . Disarmed . | . . . . . Reprogrammed . | . . . . . Reused . | . . . . . Traps Extracted . | . . . . . Installed . | . . . . . Triggered . | . . . . . Machines | -11 -10 -9 -9 -8 ---------- Run | Yrd Mat Mat Sto Mat Machines Disabled 1 | . . . 1 . Max in Single Turn 1 | . . . 1 . Machines Repaired . | . . . . . Machines Dismantled . | . . . . . Machines Sabotaged . | . . . . . Overloaded Fab Kills . | . . . . . Hacking | -11 -10 -9 -9 -8 --------- Run | Yrd Mat Mat Sto Mat Machines Accessed 5 | . 1 2 2 . Terminals 5 | . 1 2 2 . Fabricators . | . . . . . Repair Stations . | . . . . . Recycling Units . | . . . . . Scanalyzers . | . . . . . Garrison Access . | . . . . . Total Hacks 15 | . 2 6 7 . Successful 8 | . 1 2 5 . Failed 7 | . 1 4 2 . Catastrophic . | . . . . . Database Lockouts . | . . . . . Manual 9 | . 1 4 4 . Terminals 15 | . 2 6 7 . Fabricators . | . . . . . Repair Stations . | . . . . . Recycling Units . | . . . . . Scanalyzers . | . . . . . Garrison Access . | . . . . . Terminal Hacks 6 | . . 2 4 . Record 2 | . . . 2 . Open Door 1 | . . . 1 . Alert Level 2 | . . 1 1 . Unreport Threat 1 | . . 1 . . Fabricator Hacks . | . . . . . Repair Station Hacks . | . . . . . Recycling Unit Hacks . | . . . . . Scanalyzer . | . . . . . Garrison Access Hacks . | . . . . . Unauthorized Hacks 2 | . 1 . 1 . Terminals 2 | . 1 . 1 . Botnet 2 | . 1 . 1 . Fabricators . | . . . . . Repair Stations . | . . . . . Recycling Units . | . . . . . Scanalyzers . | . . . . . Garrison Access . | . . . . . Data Cores Recovered . | . . . . . Used . | . . . . . Hacking Detections 3 | . . 2 1 . Full Trace Events 3 | . . 2 1 . Feedback Events . | . . . . . Feedback Blocked . | . . . . . Robot Schematics Acquired . | . . . . . Robots Built . | . . . . . Authchips . | . . . . . Time . | . . . . . Total Robot Build Rating . | . . . . . Part Schematics Acquired . | . . . . . Parts Built . | . . . . . Authchips . | . . . . . Time . | . . . . . Total Part Build Rating . | . . . . . Part Studies Acquired . | . . . . . Parts Repaired . | . . . . . Time . | . . . . . Parts Recycled . | . . . . . Recycled Matter . | . . . . . Retrieved Matter . | . . . . . Retrieved Components . | . . . . . Parts Scanalyzed . | . . . . . Part Schematics Acquired . | . . . . . Parts Damaged . | . . . . . Bothacking | -11 -10 -9 -9 -8 ------------ Run | Yrd Mat Mat Sto Mat Used RIF Installer . | . . . . . Robots Hacked 1 | . . . 1 . Non-combat . | . . . . . Combat 1 | . . . 1 . Robot Hacks Applied 1 | . . . 1 . parse_system 1 | . . . 1 . Relay Couplers Released . | . . . . . Fabnet Peak Effective % . | . . . . . Robots Rewired . | . . . . . Allies Hacked . | . . . . . Hacks Repelled . | . . . . . Allies | -11 -10 -9 -9 -8 -------- Run | Yrd Mat Mat Sto Mat Total Allies . | . . . . . Largest Group . | . . . . . Highest-Rated Group . | . . . . . Highest-Rated Ally . | . . . . . Total Orders . | . . . . . Ally Attacks . | . . . . . Total Damage . | . . . . . Kills . | . . . . . Allies Corrupted . | . . . . . Allies Melted . | . . . . . Intel | -11 -10 -9 -9 -8 ------- Run | Yrd Mat Mat Sto Mat Active Infowar (turns) 882 | 37 196 276 238 135 Terrain 747 | 37 196 276 238 . ECM 135 | . . . . 135 Robot Analysis Total . | . . . . . Derelict Logs Recovered . | . . . . . Drone Launches 20 | . . . 17 3 Drone Recoveries 15 | . . . 10 5 Exploration | -11 -10 -9 -9 -8 ------------- Run | Yrd Mat Mat Sto Mat Turns Passed 1104 | 135 196 276 343 154 Spaces Moved 953 | 78 225 274 252 124 Core 16 | 16 . . . . Treads . | . . . . . Legs . | . . . . . Wheels 937 | 62 225 274 252 124 Hover . | . . . . . Flight . | . . . . . Fastest Speed 50 | 50 80 80 80 100 Average Speed 84 | 92 81 80 82 100 Slowest Speed 100 | 100 100 80 100 100 Overloaded Moves . | . . . . . Propulsion Burnouts . | . . . . . Robots Hopped . | . . . . . Potential Cave-ins . | . . . . . Cave-ins Triggered . | . . . . . Exploration Rate (%) 22 | 5 39 16 40 14 Regions Visited 4 Branch Regions 1 Pre-discovered Areas . | . . . . . Known Exits Taken . | . . . . . Unknown Exits Taken 4 | 1 1 1 1 . Scrap Searched . | . . . . . Spaces Dug . | . . . . . Terrain Destroyed 52 | . . 46 6 . Melee . | . . . . . Projectile 1 | . . 1 . . AOE 51 | . . 45 6 . Terrain Rammed . | . . . . . Walls Destroyed . | . . . . . Machines Disabled . | . . . . . Actions | -11 -10 -9 -9 -8 --------- Run | Yrd Mat Mat Sto Mat Total 1148 | 122 236 314 339 137 Wait 23 | . . 11 12 . Move 949 | 77 224 273 251 124 Hop . | . . . . . Pick Up 30 | 18 1 3 8 . Fast Attach 19 | 2 3 4 7 3 Attach 18 | 8 . 1 9 . Detach 1 | 1 . . . . Swap 11 | . 3 1 7 . Drop 26 | 5 5 5 9 2 Fire 63 | 11 . 15 29 8 Melee 8 | . . 1 7 . Ram . | . . . . . Kick . | . . . . . Crush . | . . . . . Escape Stasis . | . . . . . Rewire . | . . . . . Trap . | . . . . . Miscellaneous . | . . . . . Route ------- -11/Scrapyard -10/Materials -9/Materials -9/Storage -8/Materials History --------- Turn | Location | Event 19 | -11/Scrapyard | Discovered new exit (range 16) 136 | -11/Scrapyard | Entered Materials 294 | -10/Materials | Discovered new exit (range 11) 300 | -10/Materials | Build established: Mutant 332 | -10/Materials | Entered another Materials area 332 | -9/Materials | Evolved 2 slots: Propulsion x1, Utility x1 366 | -9/Materials | Discovered new exit (range 8) 608 | -9/Materials | Entered Storage 815 | -9/Storage | Core integrity fell below 50% 831 | -9/Storage | Discovered new exit (range 16) 909 | -9/Storage | Lost 3 allies 926 | -9/Storage | Lost 9 parts (1p5n3w) 951 | -9/Storage | Entered Materials 951 | -8/Materials | Accompanied by 3 allies 951 | -8/Materials | Evolved 2 slots: Power x1, Propulsion x1 1105 | -8/Materials | Self-destructed Last Messages --------------- 01045_ Drone released from Drone Bay. 01046_ Drone retrieved by Drone Bay (no repairs). 01063_ W-25 Informer sends out distress signal. 01071_ Acquired Lgt. Nuclear Core. 01081_ Slug penetrates Wall. 01082_ Atomic Centrifuge disabled. 01084_ Slug penetrates Wall. 01086_ Com. Wheel destroyed. 01088_ Slug penetrates Wall. 01092_ Melted Lgt. Nuclear Core. 01092_ Slug penetrates Wall. 01094_ G-47 Trooper heat short circuits Aluminum Leg. 01094_ G-47 Trooper overheating. 01095_ Ion Engine destroyed. 01095_ G-47 Trooper destroyed. 01095_ Slug penetrates Wall. 01096_ U-05 Engineer builds a Door. 01098_ Penetrated by Slug. Map ----- +----------------------------------------------------+ | ?????????????????????????????????????????????????? | | ?????????????????????????????????????????????????? | | ?????????????????????????????????????????????????? | | ?????????????????????????????????????????????????? | | ?????????????????????????????????????????????????? | | ?????????????????????????????????????????????????? | | ?????????????????????????????????????????????????? | | ?????????????????????????????????????????????????? | | ?????????????????????????????????????????????????? | | ???????????????????? ???????????????????????????? | | ???????##########??? #??????????????????????????? | | ???????# #??? #??????????????????????????? | | ???????# """ !#??# #??????????????????????????? | | ???????# """ #??# ??????????????????????????? | | ???????# """ #??# #??????????????????????????? | | ???????# #??# #??????????????????????????? | | ???????# """ #??# #??????????????????????????? | | ???????# """ #??# #??????????????????????????? | | ???????# """ =#??# #??????????????????????????? | | ???????# #??# #??????????????????????????? | | ???????#####+####??# #??????????????????????????? | | ?????????# ##### ##########+######??????????? | | ?????????# ?????????? | | ###???#### ?????????? | | #[ ? # g%h ?????????? | | # """ # ##### ####@####### #????????????? | | # """ ## ##???# #??# #?????????????????? | | # """ ## #????# #??# "" #?????????????????? | | # ## #????# #??# "" #?????????????????? | | # """ ## #????# #??# """ #?????????????????? | | # """ ## ######+#### #?????????????????? | | # """ ## ## # ]#?????????????????? | | # ## ## ########?????????????????? | | ######+### # """ #????????????????????????? | | ??# " #% """"" #????????????????????????? | | ??# "T + """"" #????????????????????????? | | ??# # """"" #????????????????????????? | | ######+### #! """ #????????????????????????? | | # ## ## #????????????????????????? | | # """ ## ## [ #????????????????????????? | | # "R ## ###########????????????????????????? | | # """ ## #??????????????????????????????????? | | # ## #??????????????????????????????????? | | # // ## #??????????????????????????????????? | | # !// ## #??????????????????????????????????? | | # !// ## #??????????????????????????????????? | | # ## #??????????????????????????????????? | | ##+######## ??????????????????????????????????? | | ?# ??????? ??????????????????????????????????? | | ?##??????? ??????????????????????????????????? | +----------------------------------------------------+ Best States ------------- Heat Dissipation 31 Energy Generation 19 Energy Capacity 310 Matter Stores 300 Matter Capacity 300 Sight Range 16 Terrain Scan Range 16 Terrain Scan Density 110 ECM Strength 1 Evasion (%) 44 Item Schematics ----------------- None Robot Schematics ------------------ None Fabricated ------------ Nothing Repaired ---------- Nothing Studied --------- None Alien Tech Used ----------------- None Achievements -------------- Omniscient Cartographer Challenges ------------ None Game ------ Seed EnergyMyomerLance Manual? 0 Play Time 00:20:15 Cumulative 26.4 hours Start 2025.11.18 @ 17:04:49 End 2025.11.19 @ 16:27:21 Sessions 2 Manual Loads 0 Difficulty Rogue Special Mode None Game No. 54 Rogue 54 Adventurer 0 Explorer 0 Win Type - Total 0 Types 0/0/0/0/0/0/0/0/0/0 Lore% 6 Gallery% 23 Achievement% 13 Wizard Run 0 Options --------- Layout 1 ASCII 0 Keyboard 0 Movement Mouse Keybinds 0 Fullscreen 1 Font 24/Smallcaps Map View 50x35 Zoom Use 0% Tactical HUD 1 Map Filters NONE Filters NONE Steam 1 RUN: f162007e-43bb-4288-9ce9-0925fbd9dc02